fUST/lending_fUST_20241222
["ID","MTS","AMOUNT","RATE_DAILY","PERIOD"]
[346299583,1734879055745,-643.62,0.00013972,2]
[346299585,1734879055754,-500.0,0.00013972,2]
[346299587,1734879055763,-500.0,0.00013972,2]
[346299589,1734879055773,-500.0,0.00013972,2]
[346299591,1734879055782,-500.0,0.00013972,2]
[346299593,1734879055792,-500.0,0.00013972,2]
[346299595,1734879055802,-6455.07,0.00013972,2]
[346299597,1734879055811,-505.83412934,0.00013972,2]
[346299599,1734879055820,-502.8409468,0.00013972,2]
[346299601,1734879055829,-500.0,0.00013972,2]
[346299603,1734879055838,-500.0,0.00013972,2]
[346299604,1734879055849,-843.97,0.00013972,2]
[346299607,1734879055858,-500.0,0.00013972,2]
[346299608,1734879055867,-500.0,0.00013972,2]
[346299610,1734879055877,-3541.17,0.00013972,2]
[346299613,1734879055886,-1294.06,0.00013972,2]
[346299615,1734879055896,-500.0,0.00013972,2]
[346299617,1734879055905,-503.82120432,0.00013972,2]
[346299619,1734879055914,-500.0,0.00013972,2]
[346299621,1734879055924,-500.0,0.00013972,2]
[346299623,1734879055933,-500.0,0.00013972,2]
[346299624,1734879055942,-500.0,0.00013972,2]
[346299627,1734879055951,-834.48,0.00013972,2]
[346299629,1734879055960,-500.0,0.00013972,2]
[346299631,1734879055969,-500.0,0.00013972,2]
[346299633,1734879055979,-500.0,0.00013972,2]
[346299635,1734879055988,-1018.03,0.00013972,2]
[346299637,1734879055997,-591.48,0.00013972,2]
[346299639,1734879056006,-2802.46,0.00013972,2]
[346299641,1734879056016,-500.0,0.00013972,2]
[346299642,1734879056025,-522.11190142,0.00013972,2]
[346299644,1734879056035,-634.83,0.00013972,2]
[346299646,1734879056044,-1626.1,0.00013972,2]
[346299649,1734879056054,-500.0,0.00013972,2]
[346299651,1734879056063,-2253.92,0.00013972,2]
[346299652,1734879056072,-500.0,0.00013972,2]
[346299654,1734879056082,-500.0,0.00013972,2]
[346299657,1734879056093,-500.0,0.00013972,2]
[346299662,1734879056103,-577.44,0.00013972,2]
[346299663,1734879056229,-185.23927,0.00013972,2]
[346299664,1734879056239,-500.0,0.00013972,2]
[346299665,1734879056249,-512.7715181,0.00013972,2]
[346299666,1734879056258,-503.28,0.00013972,2]
[346299667,1734879056267,-185.239278,0.00013972,2]
[346299668,1734879056276,-500.0,0.00013972,2]
[346299669,1734879056285,-1923.68,0.00013972,2]
[346299670,1734879056294,-500.0,0.00013972,2]
[346299671,1734879056303,-500.0,0.00013972,2]
[346299672,1734879056313,-544.5,0.00013972,2]
[346299673,1734879056322,-1247.36,0.00013972,2]
[346299674,1734879056331,-500.0,0.00013972,2]
[346299675,1734879056344,-500.0,0.00013972,2]
[346299676,1734879056354,-500.0,0.00013972,2]
[346299677,1734879056363,-951.18,0.00013972,2]
[346299678,1734879056372,-829.8,0.00013972,2]
[346299679,1734879056382,-500.0,0.00013972,2]
[346299680,1734879056392,-504.00878446,0.00013972,2]
[346299681,1734879056401,-278.719316,0.00013972,2]
[346299682,1734879056410,-278.719316,0.00013972,2]
[346299683,1734879056419,-1128.15,0.00013972,2]
[346299685,1734879056428,-2536.71,0.00013972,2]
[346299686,1734879056439,-807.38,0.00013972,2]
[346299687,1734879056449,-500.0,0.00013972,2]
[346299688,1734879056458,-278.719316,0.00013972,2]
[346299689,1734879056468,-278.71931935,0.00013972,2]
[346299690,1734879056477,-2531.32,0.00013972,2]
[346299691,1734879056488,-500.0,0.00013972,2]
[346299692,1734879056498,-500.0,0.00013972,2]
[346299693,1734879056507,-3572.86,0.00013972,2]
[346299694,1734879056517,-500.35,0.00013972,2]
[346299695,1734879056527,-500.0,0.00013972,2]
[346299696,1734879056536,-500.0,0.00013972,2]
[346299697,1734879056546,-500.0,0.00013972,2]
[346299698,1734879056556,-500.0,0.00013972,2]
[346299699,1734879056567,-500.0,0.00013972,2]
[346299700,1734879056576,-661.58,0.00013972,2]
[346299701,1734879056586,-503.68711025,0.00013972,2]
[346299702,1734879056598,-812.04,0.00013972,2]
[346299703,1734879056608,-1934.37,0.00013972,2]
[346299704,1734879056617,-2327.98,0.00013972,2]
[346299705,1734879056626,-502.76891911,0.00013972,2]
[346299706,1734879056636,-500.0,0.00013972,2]
[346299707,1734879056645,-500.0,0.00013972,2]
[346299708,1734879056655,-988.55,0.00013972,2]
[346299709,1734879056665,-500.0,0.00013972,2]
[346299710,1734879056674,-501.68,0.00013972,2]
[346299711,1734879056684,-500.0,0.00013972,2]
[346299712,1734879056693,-566.88,0.00013972,2]
[346299713,1734879056703,-2091.58,0.00013972,2]
[346299714,1734879056712,-502.69785542,0.00013972,2]
[346299715,1734879056723,-500.0,0.00013972,2]
[346299716,1734879056732,-500.0,0.00013972,2]
[346299717,1734879056742,-524.95170891,0.00013972,2]
[346299718,1734879056751,-939.69,0.00013972,2]
[346299719,1734879056760,-500.0,0.00013972,2]
[346299720,1734879056771,-621.436077,0.00013972,2]
[346299721,1734879056780,-500.0,0.00013972,2]
[346299722,1734879056790,-500.0,0.00013972,2]
[346299723,1734879056799,-500.0,0.00013972,2]
[346299724,1734879056809,-910.65,0.00013972,2]
[346299725,1734879056818,-1248.4,0.00013972,2]
[346299726,1734879056827,-500.0,0.00013972,2]
[346299727,1734879056836,-500.0,0.00013972,2]
[346299728,1734879056848,-500.0,0.00013972,2]
[346299729,1734879056857,-847.32,0.00013972,2]
[346299730,1734879056866,-1152.69,0.00013972,2]
[346299731,1734879056876,-500.0,0.00013972,2]
[346299732,1734879056885,-2573.58,0.00013972,2]
[346299733,1734879056894,-500.0,0.00013972,2]
[346299734,1734879056904,-151.0,0.00013972,2]
[346299735,1734879056913,-151.0,0.00013972,2]
[346299736,1734879056922,-676.59,0.00013972,2]
[346299737,1734879056931,-500.0,0.00013972,2]
[346299738,1734879056941,-500.0,0.00013972,2]
[346299739,1734879056950,-500.0,0.00013972,2]
[346299740,1734879056960,-500.0,0.00013972,2]
[346299741,1734879056969,-500.0,0.00013972,2]
[346299742,1734879056978,-500.0,0.00013972,2]
[346299743,1734879056988,-501.03810293,0.00013972,2]
[346299745,1734879056998,-500.0,0.00013972,2]
[346299747,1734879057007,-500.0,0.00013972,2]
[346299748,1734879057017,-500.0,0.00013972,2]
[346299751,1734879057026,-500.0,0.00013972,2]
[346299752,1734879057036,-518.58,0.00013972,2]
[346299754,1734879057045,-500.0,0.00013972,2]
[346299756,1734879057055,-500.0,0.00013972,2]
[346299759,1734879057065,-500.0,0.00013972,2]
[346299761,1734879057074,-500.0,0.00013972,2]
[346299763,1734879057084,-500.0,0.00013972,2]
[346299765,1734879057095,-2875.8,0.00013972,2]
[346299767,1734879057105,-200.13415461,0.00013972,2]
[346299769,1734879057115,-500.0,0.00013972,2]
[346299770,1734879057125,-501.48154981,0.00013972,2]
[346299772,1734879057135,-500.0,0.00013972,2]
[346299774,1734879057144,-519.19083523,0.00013972,2]
[346299776,1734879057154,-500.0,0.00013972,2]
[346299777,1734879057163,-500.0,0.00013972,2]
[346299778,1734879057172,-501.4183461,0.00013972,2]
[346299780,1734879057182,-500.0,0.00013972,2]
[346299782,1734879057191,-1107.74,0.00013972,2]
[346299784,1734879057201,-3203.12,0.00013972,2]
[346299786,1734879057211,-151.0,0.00013972,2]
[346299788,1734879057219,-165.080384,0.00013972,2]
[346299789,1734879057228,-500.0,0.00013972,2]
[346299791,1734879057238,-1648.6,0.00013972,2]
[346299793,1734879057247,-500.0,0.00013972,2]
[346299794,1734879057257,-1288.64,0.00013972,2]
[346299795,1734879057266,-500.0,0.00013972,2]
[346299796,1734879057275,-501.0572629,0.00013972,2]
[346299797,1734879057284,-500.0,0.00013972,2]
[346299798,1734879057294,-500.0,0.00013972,2]
[346299799,1734879057303,-500.0,0.00013972,2]
[346299800,1734879057313,-500.0,0.00013972,2]
[346299801,1734879057323,-1279.406792,0.00013972,2]
[346299802,1734879057332,-1279.406792,0.00013972,2]
[346299803,1734879057346,-151.0,0.00013972,2]
[346299804,1734879057356,-500.0,0.00013972,2]
[346299805,1734879057366,-1216.21,0.00013972,2]
[346299806,1734879057375,-621.5,0.00013972,2]
[346299807,1734879057385,-500.0,0.00013972,2]
[346299808,1734879057395,-1279.406792,0.00013972,2]
[346299809,1734879057404,-1815.59,0.00013972,2]
[346299810,1734879057413,-1279.406794,0.00013972,2]
[346299811,1734879057423,-500.0,0.00013972,2]
[346299812,1734879057433,-500.0,0.00013972,2]
[346299813,1734879057442,-500.0,0.00013972,2]
[346299814,1734879057453,-500.0,0.00013972,2]
[346299815,1734879057462,-1037.25,0.00013972,2]
[346299816,1734879057471,-223.662113,0.00013972,2]
[346299817,1734879057480,-223.662113,0.00013972,2]
[346299818,1734879057493,-500.0,0.00013972,2]
[346299819,1734879057503,-500.0,0.00013972,2]
[346299820,1734879057512,-1382.0,0.00013972,2]
[346299821,1734879057521,-437.25789313,0.00013972,2]
[346299822,1734879057530,-223.662113,0.00013972,2]
[346299823,1734879057541,-518.46,0.00013972,2]
[346299824,1734879057550,-223.662113,0.00013972,2]
[346299825,1734879057561,-500.0,0.00013972,2]
[346299826,1734879057571,-1001.3,0.00013972,2]
[346299828,1734879057580,-500.0,0.00013972,2]
[346299830,1734879057589,-500.0,0.00013972,2]
[346299832,1734879057604,-500.0,0.00013972,2]
[346299834,1734879057613,-502.20093038,0.00013972,2]
[346299836,1734879057622,-1951.06,0.00013972,2]
[346299838,1734879057631,-502.01812391,0.00013972,2]
[346299840,1734879057641,-500.0,0.00013972,2]
[346299842,1734879057650,-544.91431704,0.00013972,2]
[346299844,1734879057660,-645.96,0.00013972,2]
[346299846,1734879057669,-1915.69,0.00013972,2]
[346299848,1734879057678,-500.0,0.00013972,2]
[346299850,1734879057687,-500.0,0.00013972,2]
[346299852,1734879057698,-511.72734613,0.00013972,2]
[346299854,1734879057707,-500.0,0.00013972,2]
[346299855,1734879057716,-689.56,0.00013972,2]
[346299857,1734879057725,-500.0,0.00013972,2]
[346299859,1734879057734,-2402.5,0.00013972,2]
[346299860,1734879057743,-334.93888021,0.00013972,2]
[346299861,1734879057753,-500.0,0.00013972,2]
[346299862,1734879057762,-500.0,0.00013972,2]
[346299863,1734879057771,-500.0,0.00013972,2]
[346299864,1734879057780,-432.78831361,0.00013972,2]
[346299865,1734879057790,-505.55626367,0.00013972,2]
[346299866,1734879057799,-529.7,0.00013972,2]
[346299867,1734879057808,-501.13413891,0.00013972,2]
[346299868,1734879057818,-500.0,0.00013972,2]
[346299869,1734879057827,-500.0,0.00013972,2]
[346299870,1734879057836,-500.0,0.00013972,2]
[346299871,1734879057847,-1109.89,0.00013972,2]
[346299872,1734879057856,-500.0,0.00013972,2]
[346299873,1734879057865,-500.0,0.00013972,2]
[346299874,1734879057874,-917.09,0.00013972,2]
[346299875,1734879057884,-2645.97,0.00013972,2]
[346299876,1734879057893,-500.0,0.00013972,2]
[346299877,1734879057902,-1115.83,0.00013972,2]
[346299878,1734879057911,-500.0,0.00013972,2]
[346299879,1734879057921,-1404.32,0.00013972,2]
[346299880,1734879057930,-6852.85,0.00013972,2]
[346299881,1734879057940,-500.0,0.00013972,2]
[346299882,1734879057950,-565.59,0.00013972,2]
[346299883,1734879057959,-257.223107,0.00013972,2]
[346299884,1734879057969,-1192.21,0.00013972,2]
[346299895,1734879058094,-257.223103,0.00013972,2]
[346299897,1734879058103,-2118.58,0.00013972,2]
[346299899,1734879058113,-500.0,0.00013972,2]
[346299901,1734879058123,-500.0,0.00013972,2]
[346299902,1734879058132,-4150.98,0.00013972,2]
[346299903,1734879058141,-500.0,0.00013972,2]
[346299904,1734879058150,-500.0,0.00013972,2]
[346299905,1734879058160,-614.39,0.00013972,2]
[346299907,1734879058169,-1003.94,0.00013972,2]
[346299909,1734879058178,-500.0,0.00013972,2]
[346299910,1734879058187,-500.0,0.00013972,2]
[346299911,1734879058197,-500.0,0.00013972,2]
[346299912,1734879058206,-500.0,0.00013972,2]
[346299913,1734879058215,-500.0,0.00013972,2]
[346299914,1734879058225,-500.0,0.00013972,2]
[346299916,1734879058234,-717.16,0.00013972,2]
[346299918,1734879058244,-500.0,0.00013972,2]
[346299920,1734879058253,-980.95,0.00013972,2]
[346299922,1734879058262,-500.0,0.00013972,2]
[346299924,1734879058271,-28406.18,0.00013972,2]
[346299925,1734879058281,-500.97769172,0.00013972,2]
[346299926,1734879058290,-500.0,0.00013972,2]
[346299927,1734879058300,-3370.84,0.00013972,2]
[346299928,1734879058309,-500.0,0.00013972,2]
[346299929,1734879058318,-500.0,0.00013972,2]
[346299931,1734879058327,-500.0,0.00013972,2]
[346299932,1734879058337,-501.73,0.00013972,2]
[346299933,1734879058348,-500.0,0.00013972,2]
[346299934,1734879058358,-448.726841,0.00013972,2]
[346299935,1734879058367,-769.51,0.00013972,2]
[346299936,1734879058377,-1359.39,0.00013972,2]
[346299937,1734879058387,-500.0,0.00013972,2]
[346299938,1734879058396,-824.86,0.00013972,2]
[346299939,1734879058406,-500.0,0.00013972,2]
[346299940,1734879058417,-448.726833,0.00013972,2]
[346299941,1734879058426,-549.48,0.00013972,2]
[346299942,1734879058436,-500.0,0.00013972,2]
[346299943,1734879058445,-500.0,0.00013972,2]
[346299944,1734879058454,-500.0,0.00013972,2]
[346299945,1734879058464,-500.0,0.00013972,2]
[346299946,1734879058473,-684.42,0.00013972,2]
[346299947,1734879058483,-3893.55,0.00013972,2]
[346299948,1734879058496,-559.57,0.00013972,2]
[346299949,1734879058506,-507.56,0.00013972,2]
[346299950,1734879058515,-740.92,0.00013972,2]
[346299951,1734879058524,-836.84,0.00013972,2]
[346299952,1734879058533,-500.0,0.00013972,2]
[346299953,1734879058542,-164.34736,0.00013972,2]
[346299954,1734879058553,-500.0,0.00013972,2]
[346299955,1734879058564,-500.0,0.00013972,2]
[346299956,1734879058574,-504.52,0.00013972,2]
[346299957,1734879058583,-22051.35,0.00013972,2]
[346299958,1734879058593,-500.0,0.00013972,2]
[346299959,1734879058603,-4653.02,0.00013972,2]
[346299960,1734879058612,-164.347364,0.00013972,2]
[346299961,1734879058621,-500.0,0.00013972,2]
[346299962,1734879058630,-500.0,0.00013972,2]
[346299963,1734879058639,-7204.09,0.00013972,2]
[346299964,1734879058649,-500.0,0.00013972,2]
[346299965,1734879058658,-1097.5,0.00013972,2]
[346299966,1734879058667,-1330.93,0.00013972,2]
[346299967,1734879058676,-1909.52,0.00013972,2]
[346299968,1734879058686,-437.62780202,0.00013972,2]
[346299969,1734879058695,-500.0,0.00013972,2]
[346299970,1734879058704,-244.99468635,0.00013972,2]
[346299971,1734879058714,-500.0,0.00013972,2]
[346299972,1734879058723,-5914.16,0.00013972,2]
[346299973,1734879058733,-500.0,0.00013972,2]
[346299974,1734879058742,-472.36955046,0.00013972,2]
[346299975,1734879058751,-500.0,0.00013972,2]
[346299976,1734879058760,-500.0,0.00013972,2]
[346299977,1734879058770,-500.0,0.00013972,2]
[346299978,1734879058779,-500.0,0.00013972,2]
[346299979,1734879058788,-500.0,0.00013972,2]
[346299980,1734879058799,-500.0,0.00013972,2]
[346299981,1734879058808,-500.0,0.00013972,2]
[346299982,1734879058817,-503.53902868,0.00013972,2]
[346299983,1734879058826,-78030.09,0.00013972,2]
[346299984,1734879058835,-500.0,0.00013972,2]
[346299985,1734879058846,-3596.32,0.00013972,2]
[346299986,1734879058855,-500.0,0.00013972,2]
[346299987,1734879058864,-500.0,0.00013972,2]
[346299988,1734879058873,-211.07223024,0.00013972,2]
[346299989,1734879058882,-921.55,0.00013972,2]
[346299990,1734879058891,-438.60755488,0.00013972,2]
[346299991,1734879058911,-500.0,0.00013972,2]
[346299992,1734879058930,-500.0,0.00013972,2]
[346299993,1734879058947,-500.0,0.00013972,2]
[346299994,1734879058967,-3566.87,0.00013972,2]
[346299995,1734879058987,-500.0,0.00013972,2]
[346299996,1734879059004,-500.0,0.00013972,2]
[346299997,1734879059023,-589.72,0.00013972,2]
[346299998,1734879059036,-500.0,0.00013972,2]
[346299999,1734879059051,-500.0,0.00013972,2]
[346300000,1734879059069,-669.91,0.00013972,2]
[346300001,1734879059089,-500.0,0.00013972,2]
[346300002,1734879059106,-500.0,0.00013972,2]
[346300003,1734879059121,-883.43,0.00013972,2]
[346300004,1734879059138,-500.0,0.00013972,2]
[346300005,1734879059153,-504.88510161,0.00013972,2]
[346300006,1734879059168,-26083.03,0.00013972,2]
[346300007,1734879059181,-886.37,0.00013972,2]
[346300008,1734879059195,-500.0,0.00013972,2]
[346300009,1734879059210,-500.0,0.00013972,2]
[346300010,1734879059225,-500.0,0.00013972,2]
[346300011,1734879059239,-515.12,0.00013972,2]
[346300012,1734879059253,-504.84049302,0.00013972,2]
[346300013,1734879059267,-500.0,0.00013972,2]
[346300014,1734879059282,-500.0,0.00013972,2]
[346300015,1734879059297,-500.0,0.00013972,2]
[346300016,1734879059311,-710.49,0.00013972,2]
[346300017,1734879059325,-500.0,0.00013972,2]
[346300018,1734879059339,-500.0,0.00013972,2]
[346300019,1734879059358,-500.0,0.00013972,2]
[346300020,1734879059372,-420.8004454,0.00013972,2]
[346300021,1734879059386,-500.0,0.00013972,2]
[346300022,1734879059401,-500.0,0.00013972,2]
[346300023,1734879059415,-1752.37,0.00013972,2]
[346300024,1734879059431,-500.0,0.00013972,2]
[346300025,1734879059445,-509.39,0.00013972,2]
[346300026,1734879059459,-4086.2,0.00013972,2]
[346300027,1734879059473,-500.0,0.00013972,2]
[346300028,1734879059488,-1809.49,0.00013972,2]
[346300029,1734879059504,-839.56,0.00013972,2]
[346300030,1734879059519,-500.0,0.00013972,2]
[346300031,1734879059534,-500.0,0.00013972,2]
[346300032,1734879059549,-597.03,0.00013972,2]
[346300033,1734879059564,-502.85981105,0.00013972,2]
[346300034,1734879059579,-500.0,0.00013972,2]
[346300035,1734879059598,-520.81868422,0.00013972,2]
[346300036,1734879059614,-500.0,0.00013972,2]
[346300037,1734879059627,-2112.81,0.00013972,2]
[346300038,1734879059641,-150.0,0.00013972,2]
[346300039,1734879059656,-9127.78,0.00013972,2]
[346300040,1734879059671,-501.79001454,0.00013972,2]
[346300041,1734879059686,-500.0,0.00013972,2]
[346300042,1734879059701,-500.0,0.00013972,2]
[346300043,1734879059715,-500.0,0.00013972,2]
[346300044,1734879059730,-1271.01,0.00013972,2]
[346300045,1734879059744,-500.0,0.00013972,2]
[346300046,1734879059760,-635.37,0.00013972,2]
[346300047,1734879059774,-500.0,0.00013972,2]
[346300048,1734879059790,-1561.01,0.00013972,2]
[346300049,1734879059803,-2362.56,0.00013972,2]
[346300050,1734879059818,-500.0,0.00013972,2]
[346300051,1734879059833,-550.98,0.00013972,2]
[346300052,1734879059849,-500.0,0.00013972,2]
[346300053,1734879059863,-1013.76,0.00013972,2]
[346300054,1734879059878,-500.0,0.00013972,2]
[346300055,1734879059892,-576.5,0.00013972,2]
[346300056,1734879059907,-500.0,0.00013972,2]
[346300057,1734879059921,-500.0,0.00013972,2]
[346300058,1734879059939,-502.47187884,0.00013972,2]
[346300059,1734879059953,-500.0,0.00013972,2]
[346300060,1734879059967,-500.0,0.00013972,2]
[346300061,1734879059982,-1157.08,0.00013972,2]
[346300062,1734879059993,-502.03968351,0.00013972,2]
[346300063,1734879060002,-500.0,0.00013972,2]
[346300064,1734879060012,-7191.53,0.00013972,2]
[346300065,1734879060022,-1562.05,0.00013972,2]
[346300066,1734879060031,-500.0,0.00013972,2]
[346300067,1734879060041,-500.0,0.00013972,2]
[346300068,1734879060051,-7771.24,0.00013972,2]
[346300069,1734879060062,-500.0,0.00013972,2]
[346300070,1734879060072,-1050.35,0.00013972,2]
[346300071,1734879060082,-500.0,0.00013972,2]
[346300072,1734879060091,-997.68,0.00013972,2]
[346300073,1734879060105,-500.0,0.00013972,2]
[346300074,1734879060357,-500.0,0.00013972,2]
[346300075,1734879060377,-500.0,0.00013972,2]
[346300076,1734879060387,-500.0,0.00013972,2]
[346300077,1734879060397,-3933.28,0.00013972,2]
[346300078,1734879060406,-1314.23,0.00013972,2]
[346300079,1734879060417,-500.0,0.00013972,2]
[346300080,1734879060427,-500.0,0.00013972,2]
[346300081,1734879060437,-1964.83,0.00013972,2]
[346300082,1734879060446,-500.0,0.00013972,2]
[346300083,1734879060456,-2028.6,0.00013972,2]
[346300084,1734879060466,-624.76,0.00013972,2]
[346300085,1734879060475,-500.0,0.00013972,2]
[346300086,1734879060486,-607.21,0.00013972,2]
[346300087,1734879060500,-500.0,0.00013972,2]
[346300088,1734879060509,-5598.95,0.00013972,2]
[346300089,1734879060519,-150.19,0.00013973,2]
[346300090,1734879060529,-150.19,0.00013973,2]
[346300091,1734879060539,-150.19,0.00013973,2]
[346300092,1734879060548,-150.19,0.00013973,2]
[346300093,1734879060557,-150.22548265,0.00013973,2]
[346300094,1734879060570,-511.91928225,0.00013973,2]
[346300095,1734879060580,-500.0,0.00013973,2]
[346300096,1734879060590,-500.0,0.00013973,2]
[346300097,1734879060601,-160.79653164,0.00013973,2]
[346300098,1734879060611,-633.38517191,0.00013973,2]
[346300099,1734879060621,-500.0,0.00013973,2]
[346300100,1734879060630,-400.0,0.00013973,2]
[346300101,1734879060639,-2000.0,0.00014,2]
[346300102,1734879060649,-2000.0,0.00014,2]
[346300103,1734879060658,-2000.0,0.00014,2]
[346300104,1734879060667,-2000.0,0.00014,2]
[346300105,1734879060677,-500.0,0.00014109,2]
[346300106,1734879060686,-269.31496378,0.00014114,2]
[346300107,1734879060696,-420.0,0.00014115,2]
[346300108,1734879060706,-208.18,0.00014152,2]
[346300109,1734879060716,-420.0,0.00014154,2]
[346300110,1734879060726,-232.83,0.00014212,2]
[346300111,1734879060736,-503.51640862,0.00014221,2]
[346300112,1734879060746,-1000.0,0.00014221,2]
[346300113,1734879060755,-1112.48327424,0.00014221,2]
[346300114,1734879060765,-595.7757822,0.00014221,2]
[346300115,1734879060775,-1000.0,0.00014221,2]
[346300116,1734879060784,-1051.2700345,0.00014221,2]
[346300117,1734879060794,-1000.0,0.00014221,2]
[346300118,1734879060803,-1000.0,0.00014221,2]
[346300119,1734879060813,-1000.0,0.00014221,2]
[346300120,1734879060823,-1000.0,0.00014221,2]
[346300121,1734879060833,-1000.0,0.00014221,2]
[346300122,1734879060843,-449.85885051,0.00014221,2]
[346300123,1734879060853,-317.38200438,0.00014221,2]
[346300124,1734879060863,-1000.0,0.00014221,2]
[346300125,1734879060873,-160.0,0.00014245,2]
[346300126,1734879060883,-161.98170315,0.00014245,2]
[346300127,1734879060893,-150.05,0.00014246,2]
[346300128,1734879060903,-150.05,0.00014246,2]
[346300129,1734879060913,-951.41244259,0.00014246,2]
[346300130,1734879060923,-152.4413416,0.00014246,2]
[346300131,1734879060933,-151.94733301,0.00014246,2]
[346300132,1734879060943,-153.7290981,0.00014246,2]
[346300133,1734879060953,-500.0,0.00014246,2]
[346300134,1734879060963,-500.0,0.00014246,2]
[346300135,1734879060973,-202.01406444,0.00014246,2]
[346300136,1734879060983,-500.0,0.00014246,2]
[346300137,1734879060993,-501.72802782,0.00014246,2]
[346300138,1734879061002,-501.68867523,0.00014246,2]
[346300139,1734879061011,-500.0,0.00014246,2]
[346300140,1734879061021,-500.0,0.00014246,2]
[346300141,1734879061031,-500.0,0.00014246,2]
[346300142,1734879061040,-544.83,0.00014246,2]
[346300143,1734879061049,-500.0,0.00014246,2]
[346300144,1734879061059,-500.0,0.00014246,2]
[346300145,1734879061069,-500.0,0.00014246,2]
[346300146,1734879061078,-500.0,0.00014246,2]
[346300147,1734879061088,-500.0,0.00014246,2]
[346300148,1734879061100,-500.0,0.00014246,2]
[346300149,1734879061110,-500.0,0.00014246,2]
[346300150,1734879061119,-500.0,0.00014246,2]
[346300151,1734879061129,-500.0,0.00014246,2]
[346300152,1734879061138,-500.0,0.00014246,2]
[346300153,1734879061148,-500.0,0.00014246,2]
[346300154,1734879061157,-500.0,0.00014246,2]
[346300155,1734879061167,-500.0,0.00014246,2]
[346300156,1734879061177,-500.0,0.00014246,2]
[346300157,1734879061187,-500.0,0.00014246,2]
[346300158,1734879061197,-636.14,0.00014246,2]
[346300159,1734879061207,-500.0,0.00014246,2]
[346300160,1734879061218,-500.0,0.00014246,2]
[346300161,1734879061228,-500.0,0.00014246,2]
[346300162,1734879061237,-681.69,0.00014246,2]
[346300163,1734879061247,-500.0,0.00014246,2]
[346300164,1734879061257,-500.0,0.00014246,2]
[346300165,1734879061266,-500.0,0.00014246,2]
[346300166,1734879061275,-551.32,0.00014246,2]
[346300167,1734879061285,-557.35,0.00014246,2]
[346300168,1734879061295,-500.0,0.00014246,2]
[346300169,1734879061304,-500.0,0.00014246,2]
[346300170,1734879061314,-500.0,0.00014246,2]
[346300171,1734879061324,-501.89852628,0.00014246,2]
[346300172,1734879061333,-500.0,0.00014246,2]
[346300173,1734879061346,-500.0,0.00014246,2]
[346300174,1734879061356,-506.0913959,0.00014246,2]
[346300175,1734879061366,-500.0,0.00014246,2]
[346300176,1734879061376,-502.05345877,0.00014246,2]
[346300177,1734879061385,-500.0,0.00014246,2]
[346300178,1734879061395,-520.42,0.00014246,2]
[346300179,1734879061406,-485.79631426,0.00014246,2]
[346300180,1734879061416,-742.31,0.00014246,2]
[346300181,1734879061426,-500.0,0.00014246,2]
[346300182,1734879061435,-1064.95,0.00014246,2]
[346300183,1734879061445,-500.0,0.00014246,2]
[346300184,1734879061454,-500.0,0.00014246,2]